fUSD/lending_fUSD_20240927
["ID","MTS","AMOUNT","RATE_DAILY","PERIOD"]
[339283247,1727437842460,-573.07,0.0001189,2]
[339283249,1727437842470,-573.07,0.0001189,2]
[339283251,1727437842480,-500.0,0.0001189,2]
[339283253,1727437842489,-500.0,0.0001189,2]
[339283255,1727437842499,-500.0,0.0001189,2]
[339283257,1727437842508,-1140.53,0.0001189,2]
[339283258,1727437842518,-1140.53,0.0001189,2]
[339283260,1727437842527,-1152.76,0.0001189,2]
[339283262,1727437842537,-500.0,0.0001189,2]
[339283264,1727437842546,-500.0,0.0001189,2]
[339283266,1727437842555,-1165.63,0.0001189,2]
[339283268,1727437842564,-1242.91,0.0001189,2]
[339283270,1727437842574,-1242.91,0.0001189,2]
[339283272,1727437842583,-253.16501316,0.0001189,2]
[339283274,1727437842593,-500.0,0.0001189,2]
[339283276,1727437842602,-500.0,0.0001189,2]
[339283278,1727437842612,-500.0,0.0001189,2]
[339283280,1727437842622,-500.0,0.0001189,2]
[339283282,1727437842631,-500.0,0.0001189,2]
[339283284,1727437842640,-3076.71,0.0001189,2]
[339283286,1727437842650,-500.0,0.0001189,2]
[339283288,1727437842659,-500.0,0.0001189,2]
[339283290,1727437842669,-577.68,0.0001189,2]
[339283292,1727437842678,-577.68,0.0001189,2]
[339283294,1727437842688,-600.2,0.0001189,2]
[339283296,1727437842697,-500.0,0.0001189,2]
[339283298,1727437842707,-500.0,0.0001189,2]
[339283300,1727437842716,-500.0,0.0001189,2]
[339283302,1727437842726,-536.49571049,0.0001189,2]
[339283304,1727437842737,-500.0,0.0001189,2]
[339283306,1727437842747,-500.0,0.0001189,2]
[339283308,1727437842756,-500.0,0.0001189,2]
[339283310,1727437842766,-778.77,0.0001189,2]
[339283312,1727437842775,-778.77,0.0001189,2]
[339283315,1727437842785,-500.0,0.0001189,2]
[339283316,1727437842795,-500.0,0.0001189,2]
[339283319,1727437842805,-500.0,0.0001189,2]
[339283321,1727437842815,-804.87,0.0001189,2]
[339283323,1727437842825,-500.0,0.0001189,2]
[339283325,1727437842835,-1235.6,0.0001189,2]
[339283327,1727437842845,-351.86908595,0.0001189,2]
[339283329,1727437842854,-667.44,0.0001189,2]
[339283331,1727437842869,-667.44,0.0001189,2]
[339283333,1727437842880,-500.0,0.0001189,2]
[339283335,1727437842889,-500.0,0.0001189,2]
[339283337,1727437842898,-500.0,0.0001189,2]
[339283339,1727437842908,-500.0,0.0001189,2]
[339283341,1727437842921,-486.44111661,0.0001189,2]
[339283343,1727437842930,-500.0,0.0001189,2]
[339283345,1727437842939,-500.0,0.0001189,2]
[339283347,1727437842950,-500.0,0.0001189,2]
[339283349,1727437842959,-500.0,0.0001189,2]
[339283351,1727437842969,-500.0,0.0001189,2]
[339283353,1727437842978,-500.0,0.0001189,2]
[339283354,1727437842991,-500.0,0.0001189,2]
[339283355,1727437843000,-500.0,0.0001189,2]
[339283357,1727437843010,-500.0,0.0001189,2]
[339283359,1727437843020,-500.0,0.0001189,2]
[339283361,1727437843029,-500.0,0.0001189,2]
[339283363,1727437843039,-500.0,0.0001189,2]
[339283365,1727437843049,-760.83,0.0001189,2]
[339283367,1727437843059,-500.0,0.0001189,2]
[339283369,1727437843068,-500.0,0.0001189,2]
[339283371,1727437843077,-500.0,0.0001189,2]
[339283373,1727437843087,-500.0,0.0001189,2]
[339283375,1727437843096,-500.0,0.0001189,2]
[339283377,1727437843106,-500.0,0.0001189,2]
[339283379,1727437843116,-500.0,0.0001189,2]
[339283381,1727437843126,-500.0,0.0001189,2]
[339283383,1727437843136,-1053.45,0.0001189,2]
[339283385,1727437843145,-1053.45,0.0001189,2]
[339283387,1727437843155,-231.98853272,0.0001189,2]
[339283389,1727437843165,-500.0,0.0001189,2]
[339283391,1727437843175,-500.0,0.0001189,2]
[339283393,1727437843184,-500.0,0.0001189,2]
[339283395,1727437843194,-544.97,0.0001189,2]
[339283398,1727437843204,-544.97,0.0001189,2]
[339283400,1727437843214,-590.17,0.0001189,2]
[339283402,1727437843223,-724.41,0.0001189,2]
[339283404,1727437843233,-500.0,0.0001189,2]
[339283406,1727437843243,-724.41,0.0001189,2]
[339283408,1727437843254,-500.0,0.0001189,2]
[339283410,1727437843263,-1043.75,0.0001189,2]
[339283412,1727437843273,-1043.75,0.0001189,2]
[339283414,1727437843282,-500.0,0.0001189,2]
[339283416,1727437843291,-500.0,0.0001189,2]
[339283418,1727437843301,-75172.61212424,0.0001189,2]
[339283420,1727437843311,-265317.0,0.0001189,2]
[339283422,1727437843320,-5858.66,0.00011891,2]
[339283424,1727437843330,-500.0,0.00011891,2]
[339283426,1727437843339,-500.0,0.00011891,2]
[339283428,1727437843348,-500.0,0.00011891,2]
[339283430,1727437843358,-500.0,0.00011891,2]
[339283432,1727437843367,-500.0,0.00011891,2]
[339283434,1727437843377,-500.0,0.00011891,2]
[339283436,1727437843386,-500.0,0.00011891,2]
[339283438,1727437843396,-500.0,0.00011891,2]
[339283440,1727437843405,-500.0,0.00011891,2]
[339283442,1727437843414,-793.06,0.00011891,2]
[339283444,1727437843424,-1414.51,0.00011891,2]
[339283446,1727437843433,-500.0,0.00011891,2]
[339283449,1727437843443,-798.21,0.00011891,2]
[339283451,1727437843453,-500.0,0.00011891,2]
[339283453,1727437843462,-532.62,0.00011891,2]
[339283455,1727437843472,-644.17114777,0.00011891,2]
[339283457,1727437843481,-840.91,0.00011891,2]
[339283459,1727437843491,-500.0,0.00011891,2]
[339283461,1727437843500,-4182.76,0.00011891,2]
[339283463,1727437843509,-513.52680949,0.00011891,2]
[339283464,1727437843518,-1771.14,0.00011891,2]
[339283466,1727437843528,-592.37,0.00011891,2]
[339283468,1727437843537,-500.0,0.00011891,2]
[339283470,1727437843547,-869.9,0.00011891,2]
[339283472,1727437843556,-1863.94,0.00011891,2]
[339283474,1727437843565,-500.0,0.00011891,2]
[339283476,1727437843575,-1233.01,0.00011891,2]
[339283478,1727437843584,-589.93,0.00011891,2]
[339283480,1727437843593,-960.97,0.00011891,2]
[339283482,1727437843603,-705.39,0.00011891,2]
[339283484,1727437843613,-916.5,0.00011891,2]
[339283486,1727437843623,-500.0,0.00011891,2]
[339283488,1727437843633,-500.0,0.00011891,2]
[339283490,1727437843644,-1294.09,0.00011891,2]
[339283492,1727437843654,-500.0,0.00011891,2]
[339283494,1727437843664,-500.0,0.00011891,2]
[339283496,1727437843673,-573.33,0.00011891,2]
[339283498,1727437843683,-899.27,0.00011891,2]
[339283500,1727437843692,-789.63,0.00011891,2]
[339283502,1727437843702,-500.0,0.00011891,2]
[339283505,1727437843711,-561.23,0.00011891,2]
[339283507,1727437843721,-500.0,0.00011891,2]
[339283509,1727437843732,-559.7,0.00011891,2]
[339283511,1727437843741,-2547.52,0.00011891,2]
[339283513,1727437843751,-1711.8,0.00011891,2]
[339283515,1727437843761,-604.56,0.00011891,2]
[339283517,1727437843770,-500.0,0.00011891,2]
[339283519,1727437843779,-883.09,0.00011891,2]
[339283521,1727437843789,-500.0,0.00011891,2]
[339283523,1727437843799,-500.0,0.00011891,2]
[339283525,1727437843808,-500.0,0.00011891,2]
[339283527,1727437843818,-500.0,0.00011891,2]
[339283529,1727437843828,-500.0,0.00011891,2]
[339283531,1727437843838,-2923.92,0.00011891,2]
[339283532,1727437843847,-2923.92,0.00011891,2]
[339283535,1727437843859,-1096.95,0.00011891,2]
[339283537,1727437843869,-1080.73,0.00011891,2]
[339283539,1727437843879,-500.0,0.00011891,2]
[339283541,1727437843890,-500.0,0.00011891,2]
[339283543,1727437843899,-500.0,0.00011891,2]
[339283545,1727437843911,-500.0,0.00011891,2]
[339283547,1727437843922,-800.39,0.00011891,2]
[339283549,1727437843932,-800.39,0.00011891,2]
[339283551,1727437843941,-500.0,0.00011891,2]
[339283553,1727437843951,-1219.31,0.00011891,2]
[339283555,1727437843962,-1219.31,0.00011891,2]
[339283557,1727437843972,-500.0,0.00011891,2]
[339283559,1727437843982,-500.0,0.00011891,2]
[339283561,1727437843995,-500.0,0.00011891,2]
[339283563,1727437844006,-500.0,0.00011891,2]
[339283565,1727437844016,-500.0,0.00011891,2]
[339283567,1727437844025,-500.0,0.00011891,2]
[339283570,1727437844037,-874.92,0.00011891,2]
[339283572,1727437844047,-500.0,0.00011891,2]
[339283573,1727437844057,-500.0,0.00011891,2]
[339283574,1727437844067,-500.0,0.00011891,2]
[339283575,1727437844077,-500.0,0.00011891,2]
[339283576,1727437844086,-500.0,0.00011891,2]
[339283577,1727437844095,-509.5398506,0.00011891,2]
[339283578,1727437844105,-781.91,0.00011891,2]
[339283579,1727437844115,-781.91,0.00011891,2]
[339283580,1727437844125,-729.32,0.00011891,2]
[339283581,1727437844134,-729.32,0.00011891,2]
[339283582,1727437844144,-500.0,0.00011891,2]
[339283584,1727437844153,-883.24,0.00011891,2]
[339283586,1727437844163,-883.24,0.00011891,2]
[339283588,1727437844172,-632.16,0.00011891,2]
[339283590,1727437844182,-500.0,0.00011891,2]
[339283592,1727437844191,-500.0,0.00011891,2]
[339283594,1727437844200,-718.67,0.00011891,2]
[339283596,1727437844209,-628.49,0.00011891,2]
[339283598,1727437844218,-628.49,0.00011891,2]
[339283600,1727437844228,-837.1,0.00011891,2]
[339283602,1727437844238,-1099.85,0.00011891,2]
[339283604,1727437844248,-1099.85,0.00011891,2]
[339283606,1727437844259,-662.65,0.00011891,2]
[339283608,1727437844268,-1033.36,0.00011891,2]
[339283610,1727437844277,-500.0,0.00011891,2]
[339283612,1727437844286,-500.0,0.00011891,2]
[339283614,1727437844296,-641.35,0.00011891,2]
[339283616,1727437844305,-1132.68,0.00011891,2]
[339283618,1727437844314,-641.35,0.00011891,2]
[339283620,1727437844323,-942.64,0.00011891,2]
[339283622,1727437844332,-942.64,0.00011891,2]
[339283624,1727437844342,-500.0,0.00011891,2]
[339283626,1727437844351,-500.0,0.00011891,2]
[339283628,1727437844360,-500.0,0.00011891,2]
[339283630,1727437844370,-500.0,0.00011891,2]
[339283632,1727437844380,-715.83,0.00011891,2]
[339283634,1727437844389,-771.04,0.00011891,2]
[339283636,1727437844399,-715.83,0.00011891,2]
[339283638,1727437844408,-626.71,0.00011891,2]
[339283639,1727437844418,-916.87,0.00011891,2]
[339283641,1727437844427,-916.87,0.00011891,2]
[339283643,1727437844437,-716.05,0.00011891,2]
[339283645,1727437844447,-1190.7,0.00011891,2]
[339283647,1727437844457,-1190.7,0.00011891,2]
[339283649,1727437844466,-500.0,0.00011891,2]
[339283651,1727437844475,-500.0,0.00011891,2]
[339283653,1727437844485,-500.0,0.00011891,2]
[339283655,1727437844494,-500.0,0.00011891,2]
[339283657,1727437844503,-500.0,0.00011891,2]
[339283659,1727437844512,-500.0,0.00011891,2]
[339283661,1727437844522,-765.31,0.00011891,2]
[339283663,1727437844531,-1050.08,0.00011891,2]
[339283665,1727437844540,-1050.08,0.00011891,2]
[339283667,1727437844550,-705.51,0.00011891,2]
[339283669,1727437844559,-500.0,0.00011891,2]
[339283671,1727437844568,-500.0,0.00011891,2]
[339283673,1727437844578,-795.04,0.00011891,2]
[339283675,1727437844587,-795.04,0.00011891,2]
[339283677,1727437844597,-531.84,0.00011891,2]
[339283687,1727437844675,-531.84,0.00011891,2]
[339283689,1727437844685,-1633.19,0.00011891,2]
[339283691,1727437844695,-1633.19,0.00011891,2]
[339283693,1727437844704,-664.76,0.00011891,2]
[339283695,1727437844714,-692.44,0.00011891,2]
[339283697,1727437844723,-692.44,0.00011891,2]
[339283699,1727437844733,-500.0,0.00011891,2]
[339283701,1727437844742,-500.0,0.00011891,2]
[339283703,1727437844751,-500.0,0.00011891,2]
[339283705,1727437844760,-1088.91,0.00011891,2]
[339283707,1727437844770,-1088.91,0.00011891,2]
[339283709,1727437844779,-738.3,0.00011891,2]
[339283711,1727437844789,-500.0,0.00011891,2]
[339283713,1727437844798,-500.0,0.00011891,2]
[339283715,1727437844807,-959.65,0.00011891,2]
[339283717,1727437844817,-959.65,0.00011891,2]
[339283719,1727437844827,-500.0,0.00011891,2]
[339283721,1727437844836,-500.0,0.00011891,2]
[339283723,1727437844845,-500.0,0.00011891,2]
[339283725,1727437844855,-747.77,0.00011891,2]
[339283727,1727437844864,-747.77,0.00011891,2]
[339283729,1727437844875,-500.0,0.00011891,2]
[339283731,1727437844884,-500.0,0.00011891,2]
[339283733,1727437844893,-500.0,0.00011891,2]
[339283734,1727437844903,-503.67950959,0.00011891,2]
[339283736,1727437844914,-500.0,0.00011891,2]
[339283738,1727437844924,-500.0,0.00011891,2]
[339283740,1727437844933,-500.0,0.00011891,2]
[339283742,1727437844942,-500.0,0.00011891,2]
[339283744,1727437844951,-500.0,0.00011891,2]
[339283746,1727437844962,-500.0,0.00011891,2]
[339283748,1727437844972,-500.0,0.00011891,2]
[339283750,1727437844981,-525.8,0.00011891,2]
[339283752,1727437844992,-835.88,0.00011891,2]
[339283754,1727437845001,-835.88,0.00011891,2]
[339283756,1727437845011,-649.72,0.00011891,2]
[339283758,1727437845020,-649.72,0.00011891,2]
[339283760,1727437845029,-500.0,0.00011891,2]
[339283762,1727437845039,-500.0,0.00011891,2]
[339283764,1727437845048,-500.0,0.00011891,2]
[339283766,1727437845057,-398.52999764,0.00011891,2]
[339283768,1727437845067,-575.09,0.00011891,2]
[339283770,1727437845077,-500.0,0.00011891,2]
[339283772,1727437845086,-500.0,0.00011891,2]
[339283774,1727437845096,-500.0,0.00011891,2]
[339283776,1727437845106,-500.0,0.00011891,2]
[339283778,1727437845116,-1265.61,0.00011891,2]
[339283780,1727437845125,-1265.61,0.00011891,2]
[339283782,1727437845134,-1074.02,0.00011891,2]
[339283784,1727437845143,-1074.02,0.00011891,2]
[339283786,1727437845152,-500.0,0.00011891,2]
[339283788,1727437845162,-500.0,0.00011891,2]
[339283790,1727437845171,-928.12,0.00011891,2]
[339283792,1727437845181,-928.12,0.00011891,2]
[339283794,1727437845190,-500.0,0.00011891,2]
[339283796,1727437845200,-517.01,0.00011891,2]
[339283798,1727437845209,-517.01,0.00011891,2]
[339283800,1727437845219,-500.0,0.00011891,2]
[339283802,1727437845228,-500.0,0.00011891,2]
[339283804,1727437845238,-500.0,0.00011891,2]
[339283806,1727437845247,-500.0,0.00011891,2]
[339283808,1727437845256,-514.08,0.00011891,2]
[339283810,1727437845265,-500.0,0.00011891,2]
[339283812,1727437845275,-721.71,0.00011891,2]
[339283814,1727437845284,-500.0,0.00011891,2]
[339283816,1727437845294,-500.0,0.00011891,2]
[339283818,1727437845303,-500.0,0.00011891,2]
[339283820,1727437845312,-500.0,0.00011891,2]
[339283822,1727437845322,-500.0,0.00011891,2]
[339283824,1727437845332,-500.0,0.00011891,2]
[339283826,1727437845342,-500.0,0.00011891,2]
[339283828,1727437845352,-500.0,0.00011891,2]
[339283830,1727437845364,-500.0,0.00011891,2]
[339283832,1727437845374,-500.0,0.00011891,2]
[339283834,1727437845383,-596.36180197,0.00011891,2]
[339283836,1727437845393,-597.5,0.00011891,2]
[339283838,1727437845403,-715.49,0.00011891,2]
[339283840,1727437845412,-715.49,0.00011891,2]
[339283842,1727437845421,-709.95,0.00011891,2]
[339283844,1727437845430,-600.03,0.00011891,2]
[339283846,1727437845440,-709.95,0.00011891,2]
[339283848,1727437845450,-600.03,0.00011891,2]
[339283850,1727437845459,-500.0,0.00011891,2]
[339283852,1727437845468,-500.0,0.00011891,2]
[339283854,1727437845478,-3304.21,0.00011891,2]
[339283856,1727437845487,-698.75,0.00011891,2]
[339283858,1727437845497,-500.0,0.00011891,2]
[339283860,1727437845506,-500.0,0.00011891,2]
[339283862,1727437845515,-500.0,0.00011891,2]
[339283864,1727437845525,-500.0,0.00011891,2]
[339283866,1727437845534,-500.0,0.00011891,2]
[339283868,1727437845543,-500.0,0.00011891,2]
[339283870,1727437845552,-584.28,0.00011891,2]
[339283872,1727437845562,-584.28,0.00011891,2]
[339283874,1727437845571,-395.65798414,0.00011891,2]
[339283876,1727437845581,-546.8,0.00011891,2]
[339283878,1727437845590,-500.0,0.00011891,2]
[339283880,1727437845600,-222.00966762,0.00011891,2]
[339283882,1727437845609,-728.81,0.00011891,2]
[339283884,1727437845622,-500.0,0.00011891,2]
[339283886,1727437845633,-774.04,0.00011891,2]
[339283888,1727437845643,-774.04,0.00011891,2]
[339283890,1727437845652,-724.92,0.00011891,2]
[339283892,1727437845662,-724.92,0.00011891,2]
[339283894,1727437845672,-693.75,0.00011891,2]
[339283896,1727437845682,-693.75,0.00011891,2]
[339283898,1727437845691,-500.0,0.00011891,2]
[339283900,1727437845701,-500.0,0.00011891,2]
[339283902,1727437845711,-1324.14,0.00011891,2]
[339283904,1727437845720,-500.0,0.00011891,2]
[339283906,1727437845729,-500.0,0.00011891,2]
[339283908,1727437845739,-500.0,0.00011891,2]
[339283910,1727437845748,-841.23,0.00011891,2]
[339283912,1727437845757,-608.21,0.00011891,2]
[339283914,1727437845767,-500.0,0.00011891,2]
[339283916,1727437845776,-841.23,0.00011891,2]
[339283918,1727437845785,-784.22,0.00011891,2]
[339283920,1727437845795,-784.22,0.00011891,2]
[339283922,1727437845804,-500.0,0.00011891,2]
[339283924,1727437845813,-500.0,0.00011891,2]
[339283926,1727437845823,-632.35,0.00011891,2]
[339283928,1727437845832,-632.35,0.00011891,2]
[339283930,1727437845842,-876.15,0.00011891,2]
[339283932,1727437845852,-513.12,0.00011891,2]
[339283934,1727437845862,-513.12,0.00011891,2]
[339283935,1727437845871,-500.0,0.00011891,2]
[339283936,1727437845881,-500.0,0.00011891,2]
[339283937,1727437845890,-2660.01,0.00011891,2]
[339283938,1727437845899,-500.0,0.00011891,2]
[339283939,1727437845910,-500.0,0.00011891,2]
[339283940,1727437845921,-1291.39,0.00011891,2]
[339283941,1727437845930,-500.0,0.00011891,2]
[339283942,1727437845939,-500.0,0.00011891,2]
[339283943,1727437845951,-1291.39,0.00011891,2]
[339283944,1727437845960,-500.0,0.00011891,2]
[339283945,1727437845969,-860.41,0.00011891,2]
[339283946,1727437845978,-500.0,0.00011891,2]
[339283947,1727437845989,-500.0,0.00011891,2]
[339283948,1727437845998,-246.62473915,0.00011891,2]
[339283949,1727437846008,-505.87619255,0.00011891,2]
[339283950,1727437846017,-500.0,0.00011891,2]
[339283951,1727437846026,-500.0,0.00011891,2]
[339283952,1727437846036,-500.0,0.00011891,2]
[339283953,1727437846045,-500.0,0.00011891,2]
[339283954,1727437846054,-500.0,0.00011891,2]
[339283955,1727437846064,-500.0,0.00011891,2]
[339283956,1727437846073,-500.0,0.00011891,2]
[339283957,1727437846083,-500.0,0.00011891,2]
[339283958,1727437846092,-500.0,0.00011891,2]
[339283959,1727437846101,-891.17,0.00011891,2]
[339283960,1727437846111,-2252.93,0.00011891,2]
[339283961,1727437846121,-891.17,0.00011891,2]
[339283962,1727437846130,-500.0,0.00011891,2]
[339283963,1727437846139,-817.76,0.00011891,2]
[339283964,1727437846148,-500.0,0.00011891,2]
[339283965,1727437846157,-500.0,0.00011891,2]
[339283966,1727437846167,-500.0,0.00011891,2]
[339283967,1727437846177,-500.0,0.00011891,2]
[339283968,1727437846186,-500.0,0.00011891,2]
[339283969,1727437846195,-500.0,0.00011891,2]
[339283970,1727437846205,-500.0,0.00011891,2]
[339283971,1727437846214,-3343.05,0.00011891,2]
[339283972,1727437846224,-500.0,0.00011891,2]
[339283973,1727437846233,-500.0,0.00011891,2]
[339283974,1727437846243,-500.0,0.00011891,2]
[339283975,1727437846252,-500.0,0.00011891,2]
[339283976,1727437846262,-500.0,0.00011891,2]
[339283977,1727437846271,-836.99,0.00011891,2]
[339283978,1727437846281,-836.99,0.00011891,2]
[339283979,1727437846291,-533.61,0.00011891,2]
[339283980,1727437846300,-500.0,0.00011891,2]
[339283981,1727437846310,-533.61,0.00011891,2]
[339283982,1727437846321,-500.0,0.00011891,2]
[339283983,1727437846331,-500.0,0.00011891,2]
[339283984,1727437846340,-500.0,0.00011891,2]
[339283985,1727437846350,-500.0,0.00011891,2]
[339283986,1727437846360,-500.0,0.00011891,2]
[339283987,1727437846374,-1371.31,0.00011891,2]
[339283988,1727437846386,-1371.31,0.00011891,2]
[339283989,1727437846395,-1159.04,0.00011891,2]
[339283990,1727437846405,-1159.04,0.00011891,2]
[339283991,1727437846414,-513.18,0.00011891,2]
[339283992,1727437846423,-513.18,0.00011891,2]
[339283993,1727437846432,-500.0,0.00011891,2]
[339283994,1727437846442,-500.0,0.00011891,2]
[339283995,1727437846452,-500.0,0.00011891,2]
[339283996,1727437846461,-500.0,0.00011891,2]
[339283997,1727437846471,-928.71,0.00011891,2]
[339283998,1727437846481,-500.0,0.00011891,2]
[339283999,1727437846491,-500.0,0.00011891,2]
[339284000,1727437846501,-500.0,0.00011891,2]
[339284001,1727437846510,-500.0,0.00011891,2]
[339284002,1727437846520,-500.0,0.00011891,2]
[339284003,1727437846530,-904.83,0.00011891,2]
[339284004,1727437846539,-561.91,0.00011891,2]
[339284005,1727437846550,-561.91,0.00011891,2]
[339284006,1727437846560,-500.0,0.00011891,2]
[339284007,1727437846570,-500.0,0.00011891,2]
[339284008,1727437846579,-500.0,0.00011891,2]
[339284009,1727437846589,-500.0,0.00011891,2]
[339284010,1727437846599,-573.07,0.00011891,2]
[339284011,1727437846608,-500.0,0.00011891,2]
[339284012,1727437846622,-573.07,0.00011891,2]
[339284013,1727437846632,-500.0,0.00011891,2]
[339284014,1727437846641,-500.0,0.00011891,2]
[339284015,1727437846650,-1140.53,0.00011891,2]
[339284016,1727437846659,-1140.53,0.00011891,2]
[339284017,1727437846669,-1152.76,0.00011891,2]
[339284018,1727437846679,-500.0,0.00011891,2]
[339284020,1727437846688,-500.0,0.00011891,2]
[339284022,1727437846698,-1165.63,0.00011891,2]
[339284024,1727437846708,-1165.63,0.00011891,2]
[339284026,1727437846718,-391.8341921,0.00011891,2]
[339284032,1727437847291,-851.0758079,0.00011891,2]
[339284033,1727437847302,-1242.91,0.00011891,2]
[339284034,1727437847311,-500.0,0.00011891,2]
[339284035,1727437847321,-286.84,0.00011891,2]
[339284036,1727437847331,-500.0,0.00011891,2]
[339284037,1727437847341,-500.0,0.00011891,2]
[339284038,1727437847351,-500.0,0.00011891,2]
[339284040,1727437847361,-3076.71,0.00011891,2]
[339284042,1727437847371,-500.0,0.00011891,2]
[339284043,1727437847381,-500.0,0.00011891,2]
[339284044,1727437847391,-577.68,0.00011891,2]
[339284045,1727437847400,-600.2,0.00011891,2]
[339284046,1727437847411,-577.68,0.00011891,2]
[339284047,1727437847420,-500.0,0.00011891,2]
[339284048,1727437847429,-511.17392428,0.00011891,2]
[339284049,1727437847439,-570.76082866,0.00011891,2]
[339284050,1727437847448,-778.77,0.00011891,2]
[339284051,1727437847458,-500.0,0.00011891,2]
[339284052,1727437847468,-778.77,0.00011891,2]
[339284053,1727437847477,-500.0,0.00011891,2]
[339284054,1727437847487,-804.87,0.00011891,2]
[339284055,1727437847497,-500.0,0.00011891,2]
[339284056,1727437847507,-500.0,0.00011891,2]
[339284057,1727437847516,-1235.6,0.00011891,2]
[339284058,1727437847526,-667.44,0.00011891,2]
[339284059,1727437847536,-500.0,0.00011891,2]
[339284060,1727437847545,-667.44,0.00011891,2]
[339284061,1727437847554,-500.0,0.00011891,2]
[339284062,1727437847563,-500.0,0.00011891,2]
[339284063,1727437847572,-500.0,0.00011891,2]
[339284064,1727437847582,-500.0,0.00011891,2]
[339284065,1727437847592,-500.0,0.00011891,2]
[339284066,1727437847602,-500.0,0.00011891,2]
[339284067,1727437847612,-500.0,0.00011891,2]
[339284068,1727437847621,-500.0,0.00011891,2]
[339284069,1727437847631,-500.0,0.00011891,2]
[339284070,1727437847641,-500.0,0.00011891,2]
[339284071,1727437847650,-500.0,0.00011891,2]
[339284072,1727437847661,-506.04806013,0.00011891,2]
[339284073,1727437847671,-500.0,0.00011891,2]
[339284074,1727437847681,-500.0,0.00011891,2]
[339284075,1727437847692,-500.0,0.00011891,2]
[339284076,1727437847702,-500.0,0.00011891,2]
[339284077,1727437847712,-760.83,0.00011891,2]
[339284078,1727437847723,-500.0,0.00011891,2]
[339284079,1727437847733,-381.12190501,0.00011891,2]
[339284080,1727437847743,-500.0,0.00011891,2]
[339284081,1727437847753,-500.0,0.00011891,2]
[339284082,1727437847763,-500.0,0.00011891,2]
[339284083,1727437847773,-500.0,0.00011891,2]
[339284084,1727437847783,-500.0,0.00011891,2]
[339284085,1727437847793,-500.0,0.00011891,2]
[339284086,1727437847803,-1053.45,0.00011891,2]
[339284087,1727437847814,-1053.45,0.00011891,2]
[339284088,1727437847824,-500.0,0.00011891,2]
[339284089,1727437847834,-500.0,0.00011891,2]
[339284090,1727437847843,-500.0,0.00011891,2]
[339284091,1727437847853,-544.97,0.00011891,2]
[339284092,1727437847863,-544.97,0.00011891,2]
[339284093,1727437847873,-590.17,0.00011891,2]
[339284094,1727437847883,-500.0,0.00011891,2]
[339284095,1727437847893,-500.0,0.00011891,2]
[339284096,1727437847903,-724.41,0.00011891,2]
[339284097,1727437847916,-724.41,0.00011891,2]
[339284098,1727437847926,-500.0,0.00011891,2]
[339284099,1727437847936,-1043.75,0.00011891,2]